[Event "FIDE WSTC Open 50 2025"]
[Site "Prague"]
[Date "2025.02.24"]
[Round "7.15"]
[White "Roobol, Martin"]
[Black "Olafsson, Helgi"]
[Result "1/2-1/2"]
[Annotator "TA"]
[ECO "B23"]
[WhiteElo "2242"]
[BlackElo "2466"]
[PlyCount "62"]
[EventDate "2025.02.17"]
[EventType "team-tourn"]
[EventCountry "CZE"]
[SourceTitle "playchess.com"]
[Source "ChessBase"]
[SourceQuality "1"]
[TimeControl "40/5400+30:1800+30"]

{[%evp 16,62,16,13,122,108,139,141,131,134,147,5,78,89,152,111,104,108,153,107,160,141,156,162,153,147,163,166,171,176,190,175,177,173,195,193,235,228,246,210,214,210,239,87,65,79,64,57,52]} 1. e4 {[%emt 0:00:02]} c5 {[%emt 0:00:30]} 2. Nc3 {[%emt 0:00:25]} a6 {[%emt 0:00:12]} 3. g3 {[%emt 0:02:23]} b5 {[%emt 0:00:22]} 4. Bg2 {[%emt 0:00:05]} Bb7 {[%emt 0:00:04]} 5. Nge2 {[%emt 0:01:57]} e6 {[%emt 0:00:32][%cal Be7e6,Be6e5][%mdl 32]} 6. d4 {[%emt 0:00:33]} b4 {[%emt 0:01:06]} 7. Na4 {[%emt 0:01:13]} cxd4 {[%emt 0:04:27]} 8. Nxd4 {[%emt 0:01:58]} Nf6 {[%emt 0:02:02]} 9. O-O {[%emt 0:04:02]} d6 {[%emt 0:06:14] B43: Sicilian: Kan Variation: 5 Nc3.} (9... Bxe4 $11 10. Bxe4 Nxe4) 10. Re1 $16 {[%emt 0:05:23] e5 is the strong threat.} e5 {[%emt 0:05:14]} 11. Nf5 {[%emt 0:11:42]} Bc6 $146 {[%emt 0:05:39] [#] White is clearly better.} (11... g6 12. Ne3 Bc6 13. c4 Be7 14. Nd5 Bxd5 15. exd5 Nbd7 16. c5 dxc5 17. d6 Bf8 18. f4 Rb8 19. fxe5 Nh5 20. Bc6 Rc8 21. Qd5 Bg7 22. Bxd7+ Qxd7 23. Nb6 {1-0 Bodnaruk,A (2437)-Koneru,H (2472) Hengshui IMSA rapid (Women) 2019 (7)}) 12. c3 $1 {[%emt 0:03:22]} a5 {[%emt 0:02:23]} 13. a3 {[%emt 0:16:58]} (13. Bg5 $16) 13... bxa3 {[%emt 0:01:01]} (13... b3 $1 $11 {keeps the balance.}) 14. Rxa3 {[%emt 0:00:50]} (14. Bg5 {seems wilder.} g6 15. Nh6 Nbd7 16. Rxa3 Qc7 17. Qf3) 14... h6 {[%emt 0:04:21] Prevents Bg5} (14... g6 $142) 15. c4 {[%emt 0:04:34] White is much more active.} g6 {[%emt 0:02:34]} 16. Ne3 $36 {[%emt 0:00:37][%mdl 2048] Keeping Black busy.} Bg7 {[%emt 0:05:04][%cal Oe8g8]} 17. Nd5 {[%emt 0:17:40]} ({White should try} 17. c5) 17... O-O {[%emt 0:06:35] [#]} ({Black should play} 17... Nbd7) 18. Nxf6+ $1 {[%emt 0:00:46]} Qxf6 {[%emt 0:00:05]} 19. Nb6 {[%emt 0:00:07] Prevents Nd7.} Ra6 {[%emt 0:00:15]} 20. Nd5 {[%emt 0:00:05][%csl Od5] Strong Square White (d5)} Qd8 {[%emt 0:01:10]} 21. Bd2 {[%emt 0:00:42]} Ra8 {[%emt 0:05:25]} 22. Qa1 {[%emt 0:01:40]} a4 {[%emt 0:00:42]} 23. b3 {[%emt 0:03:14][%cal Bb2b3,Bb3a4,Ba4a5][%mdl 32]} (23. b4 Nd7 24. Qa2 h5) 23... Nd7 {[%emt 0:00:53]} 24. bxa4 {[%emt 0:00:42]} Nc5 {[%emt 0:00:09]} 25. a5 {[%emt 0:01:38]} f5 {[%emt 0:00:32]} 26. exf5 {[%emt 0:12:03]} gxf5 {[%emt 0:00:07]} 27. Be3 {[%emt 0:00:59]} e4 {[%emt 0:00:56]} 28. Bd4 {[%emt 0:00:22]} Rxa5 {[%emt 0:07:59]} 29. Bxg7 {[%emt 0:05:12]} (29. Rxa5 $18 Bxd4 30. Qxd4 Qxa5 31. Rd1) 29... Rxa3 {[%emt 0:00:05]} 30. Qxa3 {[%emt 0:00:04]} Kxg7 {[%emt 0:00:09]} 31. Nf4 {[%emt 0:00:14]} Qe7 {[%emt 0:01:52] Weighted Error Value: White=0.25 (precise) /Black=0.26 (precise)   Mistake:       	White=3     	Black=3      Inaccurate:     	---       	Black=1      OK:         	White=11    	Black=8      Best:        	White=1     	Black=1} 1/2-1/2

[Event "FIDE WSTC Open 50 2025"]
[Site "Prague"]
[Date "2025.02.24"]
[Round "7.16"]
[White "Arnason, Jon L"]
[Black "Kindt, Manfred"]
[Result "1-0"]
[Annotator "TA"]
[ECO "C83"]
[WhiteElo "2405"]
[BlackElo "2049"]
[PlyCount "91"]
[EventDate "2025.02.17"]
[EventType "team-tourn"]
[EventCountry "CZE"]
[SourceTitle "playchess.com"]
[Source "ChessBase"]
[SourceQuality "1"]
[TimeControl "40/5400+30:1800+30"]

{[%evp 23,91,7,50,0,19,0,0,-10,0,-7,8,12,2,4,14,0,16,18,17,16,23,0,0,0,0,0,4,0,0,0,0,0,0,0,0,0,72,68,72,72,76,25,24,16,29,0,64,64,79,79,79,79,89,0,5,0,79,79,79,79,79,79,79,79,79,79,289,289,270,278]} 1. e4 {[%emt 0:00:07]} e5 {[%emt 0:00:08]} 2. Nf3 {[%emt 0:00:18]} Nc6 {[%emt 0:00:15]} 3. Bb5 {[%emt 0:00:10]} a6 {[%emt 0:00:10]} 4. Ba4 {[%emt 0:00:05]} Nf6 {[%emt 0:00:13]} 5. O-O {[%emt 0:00:10]} Nxe4 {[%emt 0:00:19]} 6. d4 {[%emt 0:00:40]} b5 {[%emt 0:00:16]} 7. Bb3 {[%emt 0:00:05]} d5 {[%emt 0:00:13]} 8. dxe5 {[%emt 0:00:14]} Be6 {[%emt 0:00:14]} 9. c3 {[%emt 0:08:14]} Be7 {[%emt 0:00:32]} 10. Qe2 {[%emt 0:04:05]} O-O {[%emt 0:02:30]} 11. Rd1 {[%emt 0:02:27]} Nc5 {[%emt 0:37:26]} 12. Bc2 {[%emt 0:01:23]} Qd7 {[%emt 0:24:23]} 13. Be3 {[%emt 0:09:23] C83: Open Ruy Lopez: 9 c3 Be7.} (13. Nd4 $14) 13... Rfd8 $146 {[%emt 0:07:43]} ({Predecessor:} 13... Rad8 14. Nbd2 Bf5 15. Nb3 Bxc2 16. Qxc2 Ne6 17. Rd2 f5 18. Rad1 f4 19. Rxd5 Qxd5 20. Rxd5 Rxd5 {½-½ Shamkovich,L-Kortschnoj,V Moscow Training 1966 (6)}) 14. b4 {[%emt 0:15:06]} Na4 {[%emt 0:03:30]} 15. Bb3 {[%emt 0:00:55] The position is equal.} Qe8 {[%emt 0:06:45]} 16. Qc2 {[%emt 0:07:35][%cal Ob1d2]} h6 {[%emt 0:06:02]} 17. Nbd2 {[%emt 0:07:09][%cal Bb1d2,Bd2f1,Bf1e3][%mdl 32]} Nb6 {[%emt 0:01:17]} 18. Bxb6 {[%emt 0:03:07]} cxb6 {[%emt 0:00:02]} 19. Nf1 {[%emt 0:02:09]} Rac8 {[%emt 0:01:49][%cal Oc6b4]} 20. Qe2 {[%emt 0:11:14]} f6 {[%emt 0:03:40]} 21. Ne3 {[%emt 0:04:22][%cal Re3d5]} Qf7 {[%emt 0:00:23]} 22. exf6 {[%emt 0:04:26]} Bxf6 {[%emt 0:00:11]} 23. Rac1 {[%emt 0:00:06]} d4 {[%emt 0:01:39]} 24. Bxe6 {[%emt 0:04:08]} Qxe6 {[%emt 0:00:02]} 25. cxd4 {[%emt 0:00:54]} Nxd4 {[%emt 0:00:36]} 26. Nxd4 {[%emt 0:00:20]} Rxd4 {[%emt 0:00:16]} 27. Rxc8+ {[%emt 0:01:41]} Qxc8 {[%emt 0:00:02]} 28. Nd5 {[%emt 0:01:40]} Rxd1+ {[%emt 0:00:56]} 29. Qxd1 $11 {[%emt 0:00:05][%mdl 4096] Endgame KQB-KQN} Qd8 {[%emt 0:00:25]} (29... Qc4 $11) 30. g3 $16 {[%emt 0:01:00] White is more active.} Kh8 {[%emt 0:01:19]} 31. Qd3 {[%emt 0:00:48]} Qd6 {[%emt 0:01:12][%cal Of6c3]} 32. Kg2 {[%emt 0:01:46]} ({Better is} 32. Qe4 $16) 32... Qc6 {[%emt 0:01:07]} 33. Qf5 {[%emt 0:00:55]} a5 {[%emt 0:00:23]} 34. Kh3 {[%emt 0:06:31]} Bc3 {[%emt 0:00:29]} ({Black should play} 34... Bd4 $11) 35. bxa5 {[%emt 0:02:12]} bxa5 {[%emt 0:00:12]} 36. Nxc3 {[%emt 0:00:46]} Qxc3 {[%emt 0:00:03]} 37. Qxb5 $14 {[%emt 0:00:05] KQ-KQ. White is a pawn up.} Qe1 {[%emt 0:00:45]} 38. Qb8+ {[%emt 0:00:37]} (38. Kg2 $16) 38... Kh7 $11 {[%emt 0:00:09]} 39. Qb6 {[%emt 0:01:51]} Qd2 {[%emt 0:01:10]} (39... Qf1+ $11 40. Kh4 Qc4+ 41. g4 Qxa2) 40. Qb1+ $16 {[%emt 0:00:35]} Kh8 {[%emt 0:00:16] [#]} 41. Kg2 $1 {[%emt 0:01:20]} Qd5+ {[%emt 0:04:16]} 42. Kg1 {[%emt 0:00:13]} a4 {[%emt 0:01:31]} 43. a3 {[%emt 0:01:00]} Qb3 {[%emt 0:01:36]} 44. Qc1 {[%emt 0:00:06]} Qf3 $2 {[%emt 0:02:59] [#]} (44... Kg8 $16 {was worth a try.}) 45. Qc8+ $18 {[%emt 0:00:16]} Kh7 {[%emt 0:00:08]} 46. Qc2+ {[%emt 0:00:06] Weighted Error Value: White=0.13 (very precise) /Black=0.31  Loses game:     	---       	Black=1      Mistake:       	White=2     	Black=3      Inaccurate:     	White=1     	---        OK:         	White=10    	Black=10     Best:        	White=7     	Black=2      Strong:       	White=1     	---} 1-0

[Event "FIDE WSTC Open 50 2025"]
[Site "Prague"]
[Date "2025.02.24"]
[Round "7.17"]
[White "Wang, Pin"]
[Black "Haba, Petr"]
[Result "1/2-1/2"]
[Annotator "TA"]
[ECO "B47"]
[WhiteElo "2389"]
[BlackElo "2442"]
[PlyCount "33"]
[EventDate "2025.02.17"]
[EventType "team-tourn"]
[EventCountry "CZE"]
[SourceTitle "playchess.com"]
[Source "ChessBase"]
[SourceQuality "1"]
[TimeControl "40/5400+30:1800+30"]

{[%evp 22,33,0,6,14,8,11,0,0,10,14,0,0,0]} 1. e4 {[%emt 0:00:05]} c5 {[%emt 0:00:19]} 2. Nf3 {[%emt 0:00:15]} e6 {[%emt 0:00:14]} 3. d4 {[%emt 0:00:13]} cxd4 {[%emt 0:00:12]} 4. Nxd4 {[%emt 0:00:04]} Nc6 {[%emt 0:00:15]} 5. Nc3 {[%emt 0:00:14]} Qc7 {[%emt 0:00:18]} 6. Be2 {[%emt 0:01:15]} a6 {[%emt 0:00:25]} 7. O-O {[%emt 0:00:23]} Nf6 {[%emt 0:00:28]} 8. Kh1 {[%emt 0:01:23]} Nxd4 {[%emt 0:00:48]} 9. Qxd4 {[%emt 0:00:14]} Bc5 {[%emt 0:00:11]} 10. Qd3 {[%emt 0:00:10]} b5 {[%emt 0:00:20]} 11. f4 {[%emt 0:00:18]} Bb7 {[%emt 0:00:18]} 12. Bf3 {[%emt 0:02:25] The position is equal.} d5 {[%emt 0:01:03] B47: Sicilian: Taimanov: 5 Nc3 Qc7 6 f4, 6 g3 and 6 Be2.} 13. exd5 {[%emt 0:11:16][%cal Od5d6] aiming for d6!.} O-O {[%emt 0:00:26]} 14. dxe6 {[%emt 0:16:28]} Rad8 $1 {[%emt 0:00:34]} 15. Qe2 {[%emt 0:00:57]} Rde8 {[%emt 0:07:10]} 16. Bxb7 $146 {[%emt 0:06:06]} ({Predecessor:} 16. f5 fxe6 17. Bf4 Bxf3 18. Qxf3 Qc8 19. fxe6 Qxe6 20. h3 b4 21. Na4 Ba7 22. Qb3 Qxb3 23. cxb3 {½-½ Ylipartanen,J (2063)-Rozhnev,I (2193) W-Cup22 WS09 email 2017}) 16... Qxb7 {[%emt 0:00:48]} 17. Qf3 {[%emt 0:01:07] Not much happened in this game.   Weighted Error Value: White=0.05 (flawless) /Black=0.00 (flawless)   OK:         	White=2     	Black=2      Strong:       	---       	Black=1} 1/2-1/2

[Event "FIDE WSTC Open 50 2025"]
[Site "Prague"]
[Date "2025.02.24"]
[Round "7.18"]
[White "Jirovsky, Milos"]
[Black "Ning, Chunhong"]
[Result "0-1"]
[Annotator "TA"]
[ECO "A06"]
[WhiteElo "2410"]
[BlackElo "2257"]
[PlyCount "88"]
[EventDate "2025.02.17"]
[EventType "team-tourn"]
[EventCountry "CZE"]
[SourceTitle "playchess.com"]
[Source "ChessBase"]
[SourceQuality "1"]
[TimeControl "40/5400+30:1800+30"]

{[%evp 15,88,0,0,6,5,1,6,0,0,-8,-5,-38,-34,-43,-42,-48,-47,-48,-46,-46,-11,-23,-12,-18,-9,-16,-16,-37,0,-32,-32,-40,-54,-83,-72,-74,-79,-223,-224,-227,-232,-216,-229,-305,-301,-371,-362,-739,-734,-1008,-889,-1227,-1102,-1181,-1126,-1256,-811,-1307,-1258,-1039,-1122,-1261,-1348,-1611,-1536,-1328,-922,-1498,-1493,-1519,-1491,-29987,-29988,-29988,-29989]} 1. Nf3 {[%emt 0:03:28]} d5 {[%emt 0:00:29]} 2. d4 {[%emt 0:00:12]} e6 {[%emt 0:00:18]} 3. Bf4 {[%emt 0:00:24]} Nf6 {[%emt 0:03:16]} 4. e3 {[%emt 0:00:21]} Be7 {[%emt 0:01:03]} 5. h3 O-O {[%emt 0:02:34]} 6. Nbd2 {[%emt 0:01:51]} b6 {[%emt 0:02:05]} 7. Bd3 {[%emt 0:00:43]} Bb7 {[%emt 0:00:23]} 8. O-O {[%emt 0:02:17]} Nbd7 {[%emt 0:01:59]} 9. c3 {[%emt 0:02:44] The position is symmetric and equal D02: 1 d4 d5 2 Nf3 sidelines, including 2...Nf6 3 g3 and 2...Nf6 3 Bf4.} Ne4 {[%emt 0:06:19]} 10. Qc2 {[%emt 0:04:30]} f5 {[%emt 0:00:41]} 11. Rad1 $146 {[%emt 0:01:59] The position is equal.} (11. c4 c5 12. cxd5 exd5 13. dxc5 bxc5 14. Rfd1 Bf6 15. Rac1 Qb6 16. Nb3 c4 17. Bxc4 dxc4 18. Qxc4+ {1-0 Artemiev,V (2663)-Kurbedinov,R (2318) RUS-chT blitz 2016 (10.2)}) 11... Bd6 {[%emt 0:17:43]} 12. Rfe1 {[%emt 0:05:31]} Qe7 {[%emt 0:10:13]} 13. Re2 {[%emt 0:06:40]} Rac8 {[%emt 0:00:29]} 14. Qa4 {[%emt 0:04:56] [#]} a6 $1 {[%emt 0:00:35]} 15. Ne5 {[%emt 0:14:53]} (15. Bxa6 $2 {loses.} Ra8 16. Bxd6 cxd6 $19 (16... Nxd6 $2 17. Qc2 $19)) (15. Bxd6 cxd6) 15... Bxe5 {[%emt 0:02:10]} 16. Bxe5 {[%emt 0:02:48]} Nxe5 {[%emt 0:02:45]} 17. dxe5 {[%emt 0:00:03]} b5 {[%emt 0:07:24]} 18. Qa5 {[%emt 0:09:19]} Nxd2 {[%emt 0:01:38]} 19. Rexd2 {[%emt 0:00:36]} f4 {[%emt 0:04:36]} 20. exf4 {[%emt 0:05:05]} (20. a4 {seems wilder.} fxe3 21. fxe3 Qg5 22. Re2) 20... Rxf4 {[%emt 0:00:05]} 21. b3 {[%emt 0:00:18] Wards off Ra4} Qg5 {[%emt 0:02:06]} 22. Bf1 {[%emt 0:00:37]} Qxe5 {[%emt 0:01:32]} 23. Re2 {[%emt 0:06:15]} Qd6 {[%emt 0:01:08]} 24. Rde1 {[%emt 0:00:41]} Rf6 {[%emt 0:00:46]} 25. Re5 {[%emt 0:03:55]} Rcf8 {[%emt 0:00:30]} 26. R1e2 {[%emt 0:00:14] [#] White does not recover from this.} (26. f3 $17) 26... Rxf2 $3 $19 {[%emt 0:00:52][%mdl 512]} 27. Rxf2 {[%emt 0:02:10]} Rxf2 {[%emt 0:00:05]} 28. Kxf2 {[%emt 0:06:09]} Qxe5 {[%emt 0:00:08][%mdl 4096] Endgame KQB-KQB. Black is two pawns up.} 29. a4 {[%emt 0:00:15]} Qf4+ {[%emt 0:01:24]} 30. Kg1 {[%emt 0:00:17]} bxa4 {[%emt 0:01:06]} 31. Bxa6 $2 {[%emt 0:01:45]} (31. bxa4 Qe3+ 32. Kh2 Qf4+ 33. Kg1) 31... Bxa6 {[%emt 0:00:38]} 32. Qxa6 {[%emt 0:00:13]} axb3 {[%emt 0:01:09]} 33. Qxe6+ {[%emt 0:00:42] KQ-KQ. Black is two pawns up.} Kf8 {[%emt 0:05:59]} 34. Qxd5 {[%emt 0:06:38]} Qc1+ {[%emt 0:02:26]} 35. Kh2 {[%emt 0:00:35]} Qxc3 {[%emt 0:00:07]} 36. Qd8+ {[%emt 0:00:28]} Kf7 {[%emt 0:00:07]} 37. Qd7+ {[%emt 0:00:08]} Kf6 {[%emt 0:00:22]} 38. Qd8+ {[%emt 0:00:12]} Kf5 {[%emt 0:08:52]} 39. Qd7+ {[%emt 0:02:10]} Ke4 {[%emt 0:01:57]} 40. Qg4+ {[%emt 0:04:37]} Ke3 {[%emt 0:01:07]} 41. Qg5+ {[%emt 0:32:41]} Ke2 {[%emt 0:30:56]} 42. Qh5+ {[%emt 0:01:10]} Kd2 {[%emt 0:00:18] ...b2 would now be deadly.} 43. Qxh7 {[%emt 0:00:00]} Qe5+ {[%emt 0:00:00]} 44. Kh1 {[%emt 0:00:00]} b2 {[%emt 0:00:00] Weighted Error Value: White=0.60/Black=0.11 (very precise)   Mistake:       	White=2     	---        Inaccurate:     	White=5     	Black=2      OK:         	White=3     	Black=11     Best:        	---       	Black=1} 0-1

[Event "FIDE WSTC Open 50 2025"]
[Site "Prague"]
[Date "2025.02.24"]
[Round "7.19"]
[White "Liang, Zhihua"]
[Black "Zvara, Petr"]
[Result "1/2-1/2"]
[Annotator "TA"]
[ECO "A05"]
[WhiteElo "2205"]
[BlackElo "2330"]
[PlyCount "64"]
[EventDate "2025.02.17"]
[EventType "team-tourn"]
[EventCountry "CZE"]
[SourceTitle "playchess.com"]
[Source "ChessBase"]
[SourceQuality "1"]
[TimeControl "40/5400+30:1800+30"]

{[%evp 11,64,-2,8,2,3,0,0,13,-1,0,44,42,46,14,43,-10,-11,-34,-27,-15,-28,-16,-30,-21,0,0,7,-28,0,0,28,37,68,73,68,71,67,32,29,0,0,0,0,0,69,69,82,69,69,77,77,2,116,82,1001]} 1. Nf3 {[%emt 0:00:22]} Nf6 {[%emt 0:00:10]} 2. b3 {[%emt 0:00:15]} g6 {[%emt 0:00:30]} 3. Bb2 {[%emt 0:01:42]} Bg7 {[%emt 0:00:08]} 4. e3 {[%emt 0:01:53]} O-O {[%emt 0:01:46]} 5. d4 {[%emt 0:00:42]} d6 {[%emt 0:03:04]} 6. Bd3 {[%emt 0:00:22]} Nbd7 {[%emt 0:01:59]} 7. O-O {[%emt 0:01:00] A48: 1 d4 Nf6 2 Nf3 g6: Torre, London and Colle Systems.} Re8 {[%emt 0:07:38]} 8. c4 {[%emt 0:12:49]} e5 {[%emt 0:06:20][%cal Be7e5,Be5e4][%mdl 32] [#] White must now prevent ...e4.} 9. Bc2 {[%emt 0:04:25] The position is equal.} e4 {[%emt 0:10:20]} 10. Nfd2 {[%emt 0:00:19]} Nf8 {[%emt 0:00:27]} 11. Nc3 {[%emt 0:01:41][%cal Rc3e4]} Bf5 $1 {[%emt 0:00:15]} 12. Rc1 $146 {[%emt 0:10:12]} ({Predecessor:} 12. b4 c6 13. b5 h5 14. bxc6 bxc6 15. Ba4 Bd7 16. Bb3 h4 17. Qc2 Qe7 18. Ba3 {0-1 Morales Vera,P (2094)-Pulgar Diaz,C (2079) CHI-chT Santiago de Chile 2012 (2)}) 12... Qd7 {[%emt 0:10:40]} 13. f3 {[%emt 0:16:50]} ({White should try} 13. Ne2 $14) 13... exf3 $11 {[%emt 0:00:52]} 14. Qxf3 {[%emt 0:01:06]} Bxc2 {[%emt 0:04:17]} 15. Rxc2 {[%emt 0:00:10]} c6 {[%emt 0:01:44]} 16. d5 {[%emt 0:08:42]} Ng4 {[%emt 0:10:10]} 17. Nd1 {[%emt 0:08:28]} Bxb2 {[%emt 0:00:26]} 18. Rxb2 {[%emt 0:00:36]} Ne5 {[%emt 0:10:41]} 19. Qe4 {[%emt 0:03:55]} f5 {[%emt 0:00:39]} 20. Qd4 {[%emt 0:06:21]} c5 {[%emt 0:00:35]} 21. Qc3 {[%emt 0:01:43]} Qg7 {[%emt 0:00:07]} 22. e4 {[%emt 0:00:51]} f4 {[%emt 0:10:56]} 23. Rxf4 {[%emt 0:01:03]} Nfd7 {[%emt 0:00:03]} 24. Nf3 {[%emt 0:02:38]} Nxf3+ {[%emt 0:02:55]} 25. gxf3 {[%emt 0:01:37]} Ne5 {[%emt 0:02:50]} 26. Rf2 {[%emt 0:02:15]} Qh6 {[%emt 0:01:35] Dodges Rh4} 27. Qd2 {[%emt 0:02:07]} Qh5 {[%emt 0:03:51]} (27... Qh3 $11) 28. Ne3 $14 {[%emt 0:01:04]} Rf8 {[%emt 0:06:20]} 29. Ng4 {[%emt 0:03:09]} Nxg4 {[%emt 0:01:33]} 30. fxg4 {[%emt 0:00:24]} ({Reject} 30. Rxg4 Rxf3 31. Rf4 Qg5+ 32. Kf1 Rxf2+ 33. Qxf2 Re8 $11) 30... Qe5 {[%emt 0:00:01]} 31. Kg2 {[%emt 0:02:01]} (31. h4 $16) 31... Kg7 {[%emt 0:01:15]} (31... g5 $1 $11 32. Rxf8+ Rxf8) 32. h3 {[%emt 0:00:55]} Qe8 $2 {[%mdl 40960] Weighted Error Value: White=0.17 (very precise) /Black=0.16 (very precise)  An unexpected result.  Loses game:     	---       	Black=1      Mistake:       	White=2     	Black=2      Inaccurate:     	White=4     	Black=6      OK:         	White=6     	Black=11     Best:        	White=4     	Black=2      Strong:       	---       	Black=1} 1/2-1/2

[Event "FIDE WSTC Open 50 2025"]
[Site "Prague"]
[Date "2025.02.24"]
[Round "7.20"]
[White "Konopka, Michal"]
[Black "Liu, Shilan"]
[Result "1/2-1/2"]
[Annotator "TA"]
[ECO "E05"]
[WhiteElo "2326"]
[BlackElo "2093"]
[PlyCount "67"]
[EventDate "2025.02.17"]
[EventType "team-tourn"]
[EventCountry "CZE"]
[SourceTitle "playchess.com"]
[Source "ChessBase"]
[SourceQuality "1"]
[TimeControl "40/5400+30:1800+30"]

{[%evp 26,67,16,-7,0,0,37,29,31,29,30,33,36,22,43,36,42,32,32,32,51,0,0,0,0,0,0,-14,-6,-8,-7,-8,-10,-14,0,-10,0,-7,0,0,0,0,0,0]} 1. Nf3 {[%emt 0:00:22]} Nf6 {[%emt 0:00:10]} 2. d4 {[%emt 0:00:52]} e6 {[%emt 0:00:26]} 3. g3 {[%emt 0:00:41]} d5 {[%emt 0:00:15]} 4. Bg2 {[%emt 0:00:18]} Be7 {[%emt 0:00:14]} 5. c4 {[%emt 0:00:43]} dxc4 {[%emt 0:00:55]} 6. O-O {[%emt 0:01:23]} O-O {[%emt 0:00:05]} 7. Qa4 {[%emt 0:01:23]} a6 {[%emt 0:02:34]} 8. Qxc4 {[%emt 0:00:11]} b5 {[%emt 0:00:04]} 9. Qc2 {[%emt 0:00:08]} Bb7 {[%emt 0:00:07]} 10. Bg5 {[%emt 0:04:35]} Nbd7 {[%emt 0:00:09]} 11. Nbd2 {[%emt 0:00:27]} Rc8 {[%emt 0:15:03]} 12. Bxf6 {[%emt 0:01:05]} Nxf6 {[%emt 0:00:24]} 13. Nb3 {[%emt 0:00:19]} Be4 {[%emt 0:00:36]} 14. Qc1 {[%emt 0:07:01]} Qd5 {[%emt 0:03:13] E05: Open Catalan: 5 Nf3 Be7.} 15. Rd1 {[%emt 0:05:27]} Qh5 {[%emt 0:08:37]} 16. Nc5 {[%emt 0:08:56]} Bxc5 {[%emt 0:00:17] White has an edge.} 17. Qxc5 {[%emt 0:00:17]} Qxc5 {[%emt 0:00:11]} 18. dxc5 {[%emt 0:00:10]} Rfd8 {[%emt 0:00:34]} 19. Ne5 {[%emt 0:02:05]} Bxg2 {[%emt 0:02:34]} 20. Kxg2 {[%emt 0:02:04]} Kf8 {[%emt 0:00:03]} 21. Nc6 {[%emt 0:14:11]} Rxd1 {[%emt 0:04:47]} 22. Rxd1 $14 {[%emt 0:00:42][%mdl 4096] Endgame KRN-KRN} Nd5 $146 {[%emt 0:01:57] [#]} ({Predecessor:} 22... Ne4 23. b4 Nc3 24. Rd2 f5 25. a3 Nd5 26. f3 Ne7 27. Nd4 Kf7 {1-0 Shoboev,D (2185)-Dzurak,V (1894) FIDE World Uni Blitz-A 1st 2021 (8.20)}) 23. a4 {[%emt 0:19:43]} bxa4 $11 {[%emt 0:03:02] The position is equal.} 24. Ra1 {[%emt 0:01:20]} Ne7 {[%emt 0:01:07]} 25. Ne5 {[%emt 0:04:54]} f6 {[%emt 0:00:28]} 26. Nd3 {[%emt 0:00:06]} Nc6 {[%emt 0:00:09]} 27. Rxa4 {[%emt 0:00:13]} a5 {[%emt 0:00:05]} 28. f4 {[%emt 0:07:15]} Ke7 {[%emt 0:00:21]} 29. Kf3 {[%emt 0:00:14]} Rb8 {[%emt 0:01:48]} 30. Ke3 {[%emt 0:00:27]} Rb5 {[%emt 0:03:21]} 31. Kd2 {[%emt 0:01:06]} Nb4 {[%emt 0:01:12]} 32. Nxb4 {[%emt 0:00:29]} axb4 {[%emt 0:00:07]} 33. Kd3 {[%emt 0:00:20] aiming for Kc4.} Rxc5 {[%emt 0:00:11]} 34. Rxb4 {[%emt 0:00:18] Weighted Error Value: White=0.09 (flawless) /Black=0.09 (flawless)   Mistake:       	White=1     	---        Inaccurate:     	---       	Black=1      OK:         	White=3     	Black=8      Best:        	White=2     	Black=1} 1/2-1/2